[Event "Schack-SM 2022: Junior-SM"]
[Site "Fyrishov, Idrottsgatan 2, Uppsala, Sweden"]
[Date "2022.07.06"]
[Round "5.5"]
[White "Torngren, Gustav"]
[Black "Falkevall, Axel"]
[Result "1/2-1/2"]
[TimeControl "90 minutes for 40 moves + 30 minutes for the rest of the game + 30 seconds per move from move one."]
[WhiteTitle "FM"]
[BlackTitle "FM"]
[WhiteFideId "1728970"]
[BlackFideId "1735560"]
[WhiteElo "2273"]
[BlackElo "2275"]

1. d4 {[%clk 01:25:01]} {[%emt 00:05:58]} Nf6 {[%clk 01:30:34]} {[%emt
00:00:27]} 2. Nf3 {[%clk 01:23:56]} {[%emt 00:01:33]} d5 {[%clk 01:29:58]}
{[%emt 00:01:08]} 3. c4 {[%clk 01:24:11]} {[%emt 00:00:15]} e6 {[%clk
01:30:13]} {[%emt 00:00:15]} 4. Nc3 {[%clk 01:24:08]} {[%emt 00:00:31]} Bb4
{[%clk 01:29:59]} {[%emt 00:00:44]} 5. Bg5 {[%clk 01:23:49]} {[%emt 00:00:50]}
h6 {[%clk 01:29:41]} {[%emt 00:00:48]} 6. Bxf6 {[%clk 01:23:07]} {[%emt
00:01:12]} Qxf6 {[%clk 01:29:51]} {[%emt 00:00:21]} 7. Qa4+ {[%clk 01:23:29]}
{[%emt 00:00:08]} Nc6 {[%clk 01:30:07]} {[%emt 00:00:13]} 8. e3 {[%clk
01:23:54]} {[%emt 00:00:06]} O-O {[%clk 01:29:31]} {[%emt 00:01:05]} 9. Rc1
{[%clk 01:24:18]} {[%emt 00:00:07]} Rd8 {[%clk 01:28:40]} {[%emt 00:01:20]} 10.
Be2 {[%clk 01:24:32]} {[%emt 00:00:16]} dxc4 {[%clk 01:27:22]} {[%emt
00:01:48]} 11. Qb5 {[%clk 01:24:42]} {[%emt 00:00:20]} Bxc3+ {[%clk 01:15:47]}
{[%emt 00:12:06]} 12. Rxc3 {[%clk 01:24:47]} {[%emt 00:00:24]} Ne7 {[%clk
01:01:30]} {[%emt 00:14:47]} 13. Rxc4 {[%clk 01:16:03]} {[%emt 00:09:14]} Nd5
{[%clk 00:51:45]} {[%emt 00:10:16]} 14. O-O {[%clk 01:14:45]} {[%emt 00:01:47]}
a6 {[%clk 00:47:31]} {[%emt 00:04:45]} 15. Qb3 {[%clk 01:14:44]} {[%emt
00:00:30]} b6 {[%clk 00:43:11]} {[%emt 00:04:51]} 16. Rfc1 {[%clk 00:51:04]}
{[%emt 00:24:09]} a5 {[%clk 00:37:56]} {[%emt 00:05:45]} 17. e4 {[%clk
00:48:58]} {[%emt 00:02:36]} Nf4 {[%clk 00:32:54]} {[%emt 00:05:33]} 18. Bf1
{[%clk 00:47:55]} {[%emt 00:01:33]} c5 {[%clk 00:22:40]} {[%emt 00:10:43]} 19.
g3 {[%clk 00:45:59]} {[%emt 00:02:26]} Ba6 {[%clk 00:18:55]} {[%emt 00:04:16]}
20. R4c2 {[%clk 00:37:49]} {[%emt 00:08:39]} Bxf1 {[%clk 00:14:28]} {[%emt
00:04:57]} 21. Kxf1 {[%clk 00:38:06]} {[%emt 00:00:12]} cxd4 {[%clk 00:09:45]}
{[%emt 00:05:15]} 22. gxf4 {[%clk 00:34:45]} {[%emt 00:03:51]} d3 {[%clk
00:09:43]} {[%emt 00:00:31]} 23. Rc3 {[%clk 00:34:49]} {[%emt 00:00:25]} Qxf4
{[%clk 00:09:36]} {[%emt 00:00:38]} 24. Ng1 {[%clk 00:35:05]} {[%emt 00:00:13]}
Qxe4 {[%clk 00:06:52]} {[%emt 00:03:15]} 25. Rd1 {[%clk 00:31:50]} {[%emt
00:03:45]} a4 {[%clk 00:04:21]} {[%emt 00:03:02]} 26. Qc4 {[%emt 00:02:31]} Rd4
{[%clk 00:02:49]} 27. Qc6 {[%clk 00:32:05]} {[%emt 00:00:16]} Qxc6 {[%clk
00:02:55]} {[%emt 00:00:23]} 28. Rxc6 {[%clk 00:32:33]} {[%emt 00:00:03]} Rb4
{[%clk 00:03:11]} {[%emt 00:00:14]} 29. Rd2 {[%clk 00:23:33]} {[%emt 00:09:29]}
e5 {[%clk 00:02:34]} {[%emt 00:01:07]} 30. a3 {[%clk 00:22:48]} {[%emt
00:01:15]} Rb3 {[%clk 00:02:25]} {[%emt 00:00:39]} 31. Nf3 {[%clk 00:21:53]}
{[%emt 00:01:24]} Ra5 {[%clk 00:02:24]} {[%emt 00:00:32]} 32. Rc8+ {[%clk
00:17:22]} {[%emt 00:05:00]} Kh7 {[%clk 00:02:50]} {[%emt 00:00:05]} 33. Re8
{[%clk 00:17:46]} {[%emt 00:00:06]} f6 {[%clk 00:02:52]} {[%emt 00:00:28]} 34.
Ne1 {[%clk 00:18:07]} {[%emt 00:00:08]} Rd5 {[%clk 00:02:53]} {[%emt 00:00:30]}
35. f3 {[%clk 00:18:27]} {[%emt 00:00:10]} f5 {[%clk 00:01:32]} {[%emt
00:01:51]} 36. Kf2 {[%clk 00:18:38]} {[%emt 00:00:18]} f4 {[%clk 00:00:42]}
{[%emt 00:01:21]} 37. Rc8 {[%clk 00:13:17]} {[%emt 00:05:51]} Kg6 {[%clk
00:00:48]} {[%emt 00:00:25]} 38. Rc3 {[%clk 00:10:29]} {[%emt 00:03:17]} Rxc3
{[%clk 00:00:57]} {[%emt 00:00:20]} 39. bxc3 {[%clk 00:10:57]} {[%emt
00:00:02]} Kf5 {[%clk 00:01:16]} {[%emt 00:00:12]} 40. Rxd3 {[%clk 00:07:56]}
{[%emt 00:03:32]} Rb5 {[%clk 00:01:25]} {[%emt 00:00:20]} 41. Ke2 {[%emt
00:02:04]} Rb2+ {[%clk 00:30:15]} 42. Rd2 {[%clk 00:38:21]} {[%emt 00:00:11]}
Rb3 {[%clk 00:30:13]} {[%emt 00:00:32]} 43. Kd3 {[%clk 00:23:07]} {[%emt
00:15:43]} g5 {[%clk 00:23:35]} {[%emt 00:07:08]} 44. Nc2 {[%clk 00:18:58]}
{[%emt 00:04:40]} h5 {[%clk 00:22:33]} {[%emt 00:01:33]} 45. h3 {[%clk
00:18:28]} {[%emt 00:00:59]} Rb1 {[%clk 00:20:15]} {[%emt 00:02:48]} 46. Kc4
{[%clk 00:14:26]} {[%emt 00:04:32]} Rh1 {[%clk 00:16:55]} {[%emt 00:03:50]} 47.
Rd5 {[%clk 00:07:57]} {[%emt 00:06:59]} Rxh3 {[%clk 00:14:16]} {[%emt
00:03:09]} 48. Nd4+ {[%clk 00:08:21]} {[%emt 00:00:07]} Kg6 {[%clk 00:08:38]}
{[%emt 00:06:07]} 49. Rxe5 {[%clk 00:05:52]} {[%emt 00:03:00]} g4 {[%clk
00:08:10]} {[%emt 00:00:57]} 50. fxg4 {[%clk 00:05:26]} {[%emt 00:00:56]} hxg4
{[%clk 00:08:15]} {[%emt 00:00:24]} 51. Re4 {[%clk 00:05:33]} {[%emt 00:00:23]}
Kg5 {[%clk 00:07:39]} {[%emt 00:01:07]} 52. Ne6+ {[%clk 00:04:32]} {[%emt
00:01:32]} Kf5 {[%clk 00:07:23]} {[%emt 00:00:46]} 53. Rxf4+ {[%clk 00:04:51]}
{[%emt 00:00:11]} Kxe6 {[%clk 00:07:44]} {[%emt 00:00:08]} 54. Rxg4 {[%clk
00:05:15]} {[%emt 00:00:06]} Kd6 {[%clk 00:06:18]} {[%emt 00:01:56]} 55. Kb4
{[%clk 00:05:19]} {[%emt 00:00:26]} Kc6 {[%clk 00:06:08]} {[%emt 00:00:41]} 56.
Rc4+ {[%clk 00:05:22]} {[%emt 00:00:26]} Kb7 {[%clk 00:06:18]} {[%emt
00:00:20]} 57. Kxa4 {[%clk 00:05:44]} {[%emt 00:00:07]} Ka6 {[%clk 00:06:00]}
{[%emt 00:00:49]} 58. Kb4 {[%clk 00:05:40]} {[%emt 00:00:33]} Rh1 {[%clk
00:05:49]} {[%emt 00:00:41]} 59. Kb3 {[%clk 00:05:38]} {[%emt 00:00:32]} Rb1+
{[%clk 00:05:17]} {[%emt 00:01:03]} 60. Kc2 {[%clk 00:05:54]} {[%emt 00:00:13]}
Rh1 {[%clk 00:05:15]} {[%emt 00:00:33]} 61. Ra4+ {[%clk 00:05:46]} {[%emt
00:00:38]} Kb7 {[%clk 00:05:12]} {[%emt 00:00:33]} 62. Rg4 {[%clk 00:06:01]}
{[%emt 00:00:15]} Ka6 {[%clk 00:05:07]} {[%emt 00:00:35]} 63. Rg5 {[%clk
00:05:26]} {[%emt 00:01:05]} Rh4 {[%clk 00:05:09]} {[%emt 00:00:27]} 64. Kb3
{[%clk 00:05:41]} {[%emt 00:00:15]} Rh1 {[%clk 00:05:17]} {[%emt 00:00:22]} 65.
Rg2 {[%clk 00:05:58]} {[%emt 00:00:13]} Rh6 {[%clk 00:05:21]} {[%emt 00:00:26]}
66. Kb4 {[%clk 00:05:56]} {[%emt 00:00:33]} Rh1 {[%clk 00:05:24]} {[%emt
00:00:26]} 67. Rb2 {[%clk 00:06:06]} {[%emt 00:00:20]} Rh4+ {[%clk 00:05:41]}
{[%emt 00:00:14]} 68. Kb3 {[%clk 00:06:33]} {[%emt 00:00:03]} Kb7 {[%clk
00:05:56]} {[%emt 00:00:14]} 69. Rb1 {[%clk 00:06:56]} {[%emt 00:00:08]} Ka6
{[%clk 00:06:17]} {[%emt 00:00:09]} 70. Rg1 {[%clk 00:07:13]} {[%emt 00:00:12]}
Kb7 {[%clk 00:06:29]} {[%emt 00:00:19]} 71. Ra1 {[%clk 00:06:56]} {[%emt
00:00:46]} Ka6 {[%clk 00:06:47]} {[%emt 00:00:13]} 72. Rd1 {[%clk 00:07:20]}
{[%emt 00:00:06]} Kb7 {[%clk 00:06:57]} {[%emt 00:00:20]} 73. Rd4 {[%clk
00:07:32]} {[%emt 00:00:18]} Rh1 {[%clk 00:07:05]} {[%emt 00:00:23]} 74. Rb4
{[%clk 00:07:20]} {[%emt 00:00:40]} Ka6 {[%clk 00:07:07]} {[%emt 00:00:29]} 75.
Kc4 {[%clk 00:07:26]} {[%emt 00:00:24]} Rh4+ {[%clk 00:07:01]} {[%emt
00:00:37]} 76. Kd3 {[%clk 00:07:49]} {[%emt 00:00:06]} Rh3+ {[%clk 00:07:16]}
{[%emt 00:00:15]} 77. Kc2 {[%clk 00:08:17]} {[%emt 00:00:02]} Rh2+ {[%clk
00:07:34]} {[%emt 00:00:12]} 78. Kb3 {[%clk 00:08:46]} {[%emt 00:00:01]} Rh1
{[%clk 00:07:38]} {[%emt 00:00:26]} 79. Rf4 {[%clk 00:09:07]} {[%emt 00:00:09]}
Rb1+ {[%clk 00:07:35]} {[%emt 00:00:32]} 80. Kc2 {[%clk 00:09:30]} {[%emt
00:00:08]} Rh1 {[%clk 00:07:33]} {[%emt 00:00:31]} 81. Rf2 {[%clk 00:09:35]}
{[%emt 00:00:24]} Rg1 {[%clk 00:07:48]} {[%emt 00:00:17]} 82. Rh2 {[%clk
00:09:59]} {[%emt 00:00:07]} Rf1 {[%clk 00:07:47]} {[%emt 00:00:30]} 83. Kb3
{[%clk 00:10:03]} {[%emt 00:00:26]} Rb1+ {[%clk 00:08:01]} {[%emt 00:00:16]} 84.
Rb2 {[%clk 00:10:30]} {[%emt 00:00:03]} Rh1 {[%clk 00:08:21]} {[%emt 00:00:10]}
85. a4 {[%clk 00:10:52]} {[%emt 00:00:08]} Rh4 {[%clk 00:08:16]} {[%emt
00:00:35]} 86. Ka3 {[%clk 00:10:44]} {[%emt 00:00:37]} Rc4 {[%clk 00:08:17]}
{[%emt 00:00:29]} 87. Kb3 {[%emt 00:00:09]} Rh4 {[%clk 00:08:39]} 88. Rg2
{[%clk 00:11:36]} {[%emt 00:00:07]} Rh1 {[%clk 00:08:49]} {[%emt 00:00:20]} 89.
Rg5 {[%clk 00:11:29]} {[%emt 00:00:37]} Rb1+ {[%clk 00:07:43]} {[%emt
00:01:36]} 90. Ka2 {[%clk 00:11:34]} {[%emt 00:00:25]} Rh1 {[%emt 00:00:54]} 91.
Rb5 {[%clk 00:11:43]} Rh4 {[%clk 00:07:18]} {[%emt 00:00:52]} 92. Rb4 {[%clk
00:11:38]} {[%emt 00:00:35]} Rh3 {[%clk 00:07:20]} {[%emt 00:00:27]} 93. Rc4
{[%clk 00:11:51]} {[%emt 00:00:17]} Rh1 {[%clk 00:07:24]} {[%emt 00:00:27]} 94.
Rc8 {[%clk 00:12:12]} {[%emt 00:00:09]} Kb7 {[%clk 00:07:23]} {[%emt 00:00:31]}
95. Rd8 {[%clk 00:12:32]} {[%emt 00:00:10]} Rh5 {[%clk 00:07:28]} {[%emt
00:00:25]} 96. Rd1 {[%clk 00:12:44]} {[%emt 00:00:17]} Ka6 {[%clk 00:07:34]}
{[%emt 00:00:24]} 97. Kb3 {[%clk 00:13:09]} {[%emt 00:00:06]} Kb7 {[%clk
00:07:47]} {[%emt 00:00:17]} 98. Kb4 {[%clk 00:13:30]} {[%emt 00:00:09]} Rh2
{[%clk 00:07:26]} {[%emt 00:00:50]} 99. Rb1 {[%clk 00:12:36]} {[%emt 00:01:25]}
Ka6 {[%clk 00:07:40]} {[%emt 00:00:16]} 100. c4 {[%clk 00:13:04]} {[%emt
00:00:02]} Rh5 {[%clk 00:07:46]} {[%emt 00:00:24]} 101. Ra1 {[%clk 00:13:25]}
{[%emt 00:00:09]} Rg5 {[%clk 00:07:58]} {[%emt 00:00:18]} 102. Rd1 {[%clk
00:13:27]} {[%emt 00:00:28]} Rg2 {[%clk 00:07:37]} {[%emt 00:00:51]} 103. Rd3
{[%clk 00:12:09]} {[%emt 00:01:47]} Rb2+ {[%clk 00:07:26]} {[%emt 00:00:42]}
104. Rb3 {[%clk 00:12:37]} {[%emt 00:00:02]} Ra2 {[%clk 00:07:22]} {[%emt
00:00:34]} 105. Rb1 {[%clk 00:13:02]} {[%emt 00:00:05]} Rc2 {[%clk 00:07:31]}
{[%emt 00:00:21]} 106. a5 {[%clk 00:12:41]} {[%emt 00:00:51]} bxa5+ {[%clk
00:07:27]} {[%emt 00:00:34]} 107. Kc5 {[%clk 00:13:05]} {[%emt 00:00:07]} Rh2
{[%clk 00:07:15]} {[%emt 00:00:41]} 108. Rb6+ {[%clk 00:13:04]} {[%emt
00:00:31]} Ka7 {[%clk 00:07:33]} {[%emt 00:00:12]} 109. Rg6 {[%clk 00:13:24]}
{[%emt 00:00:09]} Kb7 {[%clk 00:07:10]} {[%emt 00:00:53]} 110. Rg7+ {[%clk
00:11:08]} {[%emt 00:02:47]} Kc8 {[%clk 00:07:24]} {[%emt 00:00:16]} 111. Kb5
{[%clk 00:10:23]} {[%emt 00:01:15]} Rh5+ {[%clk 00:06:42]} {[%emt 00:01:11]}
112. Kb6 {[%clk 00:10:31]} {[%emt 00:00:23]} Rh6+ {[%clk 00:06:49]} {[%emt
00:00:22]} 113. Kxa5 {[%clk 00:10:52]} {[%emt 00:00:09]} Rh5+ {[%clk 00:06:46]}
{[%emt 00:00:33]} 114. Kb4 {[%clk 00:11:11]} {[%emt 00:00:12]} Rf5 {[%clk
00:06:55]} {[%emt 00:00:20]} 115. Rh7 {[%clk 00:11:39]} {[%emt 00:00:03]} Rg5
{[%clk 00:07:17]} {[%emt 00:00:08]} 116. Ra7 {[%clk 00:11:45]} {[%emt
00:00:24]} Rh5 {[%clk 00:07:39]} {[%emt 00:00:08]} 117. Rf7 {[%clk 00:11:11]}
{[%emt 00:01:03]} Rg5 {[%clk 00:08:02]} {[%emt 00:00:07]} 118. Rh7 {[%clk
00:11:38]} {[%emt 00:00:04]} Rf5 {[%clk 00:08:19]} {[%emt 00:00:13]} 119. Kc3
{[%clk 00:11:59]} {[%emt 00:00:09]} Rg5 {[%clk 00:08:32]} {[%emt 00:00:17]} 120.
Re7 {[%clk 00:12:15]} {[%emt 00:00:14]} Rh5 {[%clk 00:08:04]} {[%emt 00:00:57]}
121. Kd4 {[%clk 00:12:32]} {[%emt 00:00:13]} Rh4+ {[%clk 00:07:56]} {[%emt
00:00:38]} 122. Kd5 {[%clk 00:12:58]} {[%emt 00:00:06]} Rh5+ {[%clk 00:07:54]}
{[%emt 00:00:31]} 123. Kd6 {[%clk 00:13:20]} {[%emt 00:00:08]} Rh6+ {[%clk
00:07:47]} {[%emt 00:00:37]} 124. Kd5 {[%clk 00:13:48]} {[%emt 00:00:02]} Rh5+
{[%clk 00:08:09]} {[%emt 00:00:08]} 125. Kc6 {[%clk 00:14:09]} {[%emt
00:00:08]} Rh6+ {[%clk 00:08:33]} {[%emt 00:00:07]} 126. Kc5 {[%clk 00:14:34]}
{[%emt 00:00:05]} Rh5+ {[%clk 00:08:54]} {[%emt 00:00:09]} 127. Kc6 {[%clk
00:14:58]} {[%emt 00:00:06]} Rh6+ {[%clk 00:09:18]} {[%emt 00:00:05]} 128. Kb5
{[%clk 00:15:25]} {[%emt 00:00:03]} Rh5+ {[%clk 00:09:41]} {[%emt 00:00:07]}
129. Kb6 {[%clk 00:15:40]} {[%emt 00:00:16]} Rh6+ {[%clk 00:10:02]} {[%emt
00:00:09]} 130. Kb5 {[%clk 00:16:06]} {[%emt 00:00:04]} Rh5+ {[%clk 00:10:20]}
{[%emt 00:00:12]} 131. c5 {[%clk 00:16:31]} {[%emt 00:00:05]} Rh6 {[%clk
00:10:40]} {[%emt 00:00:10]} 132. Rg7 {[%clk 00:16:57]} {[%emt 00:00:04]} Rf6
{[%clk 00:11:02]} {[%emt 00:00:08]} 1/2-1/2

[Event "Schack-SM 2022: Junior-SM"]
[Site "Fyrishov, Idrottsgatan 2, Uppsala, Sweden"]
[Date "2022.07.05"]
[Round "4.3"]
[White "Ostlund, Joar"]
[Black "Seo, Jung Hyun"]
[Result "0-1"]
[TimeControl "90 minutes for 40 moves + 30 minutes for the rest of the game + 30 seconds per move from move one."]
[WhiteTitle "CM"]
[WhiteFideId "1735020"]
[BlackFideId "1735667"]
[WhiteElo "2222"]
[BlackElo "2102"]

1. d4 {[%clk 01:30:56]} {[%emt 00:00:03]} d5 {[%clk 01:30:54]} {[%emt
00:00:06]} 2. c4 {[%clk 01:31:20]} {[%emt 00:00:06]} e6 {[%clk 01:31:22]}
{[%emt 00:00:03]} 3. Nc3 {[%clk 01:31:41]} {[%emt 00:00:09]} a6 {[%clk
01:31:37]} {[%emt 00:00:14]} 4. cxd5 {[%clk 01:31:36]} {[%emt 00:00:35]} exd5
{[%clk 01:32:04]} {[%emt 00:00:04]} 5. Nf3 {[%clk 01:29:59]} {[%emt 00:02:06]}
c6 {[%clk 01:32:30]} {[%emt 00:00:04]} 6. Bf4 {[%clk 01:27:52]} {[%emt
00:02:37]} Bd6 {[%clk 01:32:52]} {[%emt 00:00:08]} 7. Bxd6 {[%clk 01:27:36]}
{[%emt 00:00:47]} Qxd6 {[%clk 01:33:17]} {[%emt 00:00:05]} 8. e3 {[%clk
01:27:33]} {[%emt 00:00:33]} Bf5 {[%clk 01:32:59]} {[%emt 00:00:46]} 9. Qb3
{[%clk 01:26:41]} {[%emt 00:01:24]} b5 {[%clk 01:27:15]} {[%emt 00:06:14]} 10.
a4 {[%clk 01:12:32]} {[%emt 00:14:38]} b4 {[%clk 01:26:44]} {[%emt 00:01:01]}
11. Na2 {[%clk 01:12:55]} {[%emt 00:00:08]} a5 {[%clk 01:27:07]} {[%emt
00:00:08]} 12. Bd3 {[%clk 01:12:57]} {[%emt 00:00:27]} Bxd3 {[%clk 01:27:11]}
{[%emt 00:00:26]} 13. Qxd3 {[%clk 01:13:22]} {[%emt 00:00:05]} Nf6 {[%clk
01:26:00]} {[%emt 00:01:41]} 14. Nc1 {[%clk 01:13:34]} {[%emt 00:00:18]} Nbd7
{[%clk 01:26:10]} {[%emt 00:00:19]} 15. Nb3 {[%clk 01:12:03]} {[%emt 00:02:01]}
O-O {[%clk 01:26:16]} {[%emt 00:00:25]} 16. O-O {[%clk 01:11:56]} {[%emt
00:00:37]} Rfc8 {[%clk 01:25:20]} {[%emt 00:01:26]} 17. Rfc1 {[%clk 01:05:33]}
{[%emt 00:06:53]} c5 {[%clk 01:19:36]} {[%emt 00:06:14]} 18. dxc5 {[%clk
01:05:33]} {[%emt 00:00:30]} Nxc5 {[%clk 01:19:58]} {[%emt 00:00:08]} 19. Nxc5
{[%clk 01:05:29]} {[%emt 00:00:33]} Rxc5 {[%clk 01:20:20]} {[%emt 00:00:08]} 20.
Nd4 {[%clk 01:04:40]} {[%emt 00:01:19]} Rac8 {[%clk 01:15:20]} {[%emt
00:05:30]} 21. Rxc5 {[%clk 00:13:23]} {[%emt 00:51:47]} Qxc5 {[%clk 01:11:44]}
{[%emt 00:04:07]} 22. Nb3 {[%clk 00:12:34]} {[%emt 00:01:19]} Qc4 {[%clk
01:00:50]} {[%emt 00:11:24]} 23. Qd1 {[%clk 00:12:53]} {[%emt 00:00:11]} Qc2
{[%clk 00:54:34]} {[%emt 00:06:46]} 24. Qxc2 {[%clk 00:13:13]} {[%emt
00:00:09]} Rxc2 {[%clk 00:53:05]} {[%emt 00:01:59]} 25. Nxa5 {[%clk 00:13:39]}
{[%emt 00:00:05]} Rxb2 {[%clk 00:53:01]} {[%emt 00:00:34]} 26. Nc6 {[%clk
00:13:59]} {[%emt 00:00:09]} Ne4 {[%clk 00:48:32]} {[%emt 00:04:59]} 27. a5
{[%clk 00:11:20]} {[%emt 00:03:10]} Nc5 {[%clk 00:48:31]} {[%emt 00:00:31]} 28.
Kf1 {[%clk 00:09:35]} {[%emt 00:02:15]} Na6 {[%clk 00:47:15]} {[%emt 00:01:46]}
29. Ne7+ {[%clk 00:08:57]} {[%emt 00:01:09]} Kf8 {[%clk 00:47:37]} {[%emt
00:00:07]} 30. Nxd5 {[%clk 00:09:21]} {[%emt 00:00:06]} b3 {[%clk 00:31:32]}
{[%emt 00:16:35]} 31. Ra3 {[%clk 00:04:43]} {[%emt 00:05:08]} Rd2 {[%clk
00:28:45]} {[%emt 00:03:17]} 32. Nc3 {[%clk 00:04:41]} {[%emt 00:00:31]} b2
{[%clk 00:28:39]} {[%emt 00:00:36]} 33. Rb3 {[%clk 00:02:12]} {[%emt 00:03:00]}
Rc2 {[%clk 00:28:50]} {[%emt 00:00:18]} 34. Nd1 {[%clk 00:01:11]} {[%emt
00:01:32]} Rc1 {[%clk 00:28:14]} {[%emt 00:01:06]} 35. Rxb2 {[%clk 00:01:16]}
{[%emt 00:00:25]} Rxd1+ {[%clk 00:28:40]} {[%emt 00:00:03]} 36. Ke2 {[%clk
00:01:40]} {[%emt 00:00:07]} Rd5 {[%clk 00:28:33]} {[%emt 00:00:30]} 37. Ra2
{[%clk 00:01:47]} {[%emt 00:00:29]} g6 {[%clk 00:28:44]} {[%emt 00:00:20]} 38.
e4 {[%clk 00:01:59]} {[%emt 00:00:17]} Rc5 {[%clk 00:28:53]} {[%emt 00:00:19]}
39. Kd3 {[%clk 00:01:47]} {[%emt 00:00:45]} Nb4+ {[%clk 00:28:15]} {[%emt
00:01:08]} 40. Kd4 {[%clk 00:02:00]} {[%emt 00:00:17]} Rxa5 {[%clk 00:28:33]}
{[%emt 00:00:12]} 41. Rb2 {[%clk 00:00:32]} {[%emt 00:01:57]} Nc6+ {[%clk
00:28:46]} {[%emt 00:00:17]} 42. Ke3 {[%clk 00:00:54]} {[%emt 00:00:08]} Ne5
{[%clk 00:28:52]} {[%emt 00:00:24]} 43. Rb8+ {[%clk 00:01:06]} {[%emt
00:00:18]} Kg7 {[%clk 00:29:16]} {[%emt 00:00:04]} 44. h3 {[%clk 00:01:16]}
{[%emt 00:00:23]} Ra3+ {[%clk 00:27:30]} {[%emt 00:02:15]} 45. Kf4 {[%clk
00:01:41]} {[%emt 00:00:06]} Nd3+ {[%clk 00:27:18]} {[%emt 00:00:42]} 46. Kg3
{[%clk 00:01:53]} {[%emt 00:00:17]} Nc5+ {[%clk 00:27:19]} {[%emt 00:00:30]} 47.
Kf4 {[%clk 00:01:51]} {[%emt 00:00:32]} Ne6+ {[%clk 00:26:54]} {[%emt
00:00:55]} 48. Kg4 {[%clk 00:01:52]} {[%emt 00:00:28]} h5+ {[%clk 00:25:39]}
{[%emt 00:01:45]} 49. Kh4 {[%clk 00:02:16]} {[%emt 00:00:06]} Nf4 {[%clk
00:25:52]} {[%emt 00:00:18]} 0-1